[Event "12th National Amateur Chess-ch 2025"]
[Site "Bihar"]
[Date "2025.03.27"]
[Round "5.15"]
[White "Aamuktha Guntaka"]
[Black "Marium Fatima"]
[Result "1-0"]
[Annotator "NA RC"]
[ECO "C06"]
[WhiteElo "1910"]
[BlackElo "1881"]
[PlyCount "149"]
[EventDate "2025.03.25"]
[EventCountry "IND"]
[SourceTitle "playchess.com"]
[Source "ChessBase"]
[SourceQuality "1"]
[TimeControl "5400+30"]

{[%evp 15,149,39,44,39,32767,32767,32767,32767,32767,32767,32767,32767,32767,32767,32767,32767,32767,32767,32767,22,38,27,71,71,89,57,61,87,66,50,32767,32767,32767,70,32767,119,120,101,145,32767,32767,157,155,64,52,58,58,60,32767,32767,32767,32767,32767,32767,12,0,0,32767,32767,58,32767,32767,32767,229,32767,32767,231,329,202,329,32767,32767,32767,32767,32767,32767,32767,32767,32767,32767,32767,32767,32767,32767,32767,32767,92,95,87,102,108,60,108,107,101,95,109,123,109,95,108,104,125,126,113,62,121,108,32767,32767,32767,32767,132,47,156,145,107,131,125,77,166,174,182,174,174,162,1652,203,455,1550,5311,539,6328,174,254,282]} 1. e4 {[%emt 0:00:56]} e6 {[%emt 0:00:07]} 2. d4 {[%emt 0:00:09]} d5 {[%emt 0:00:03]} 3. Nd2 {[%emt 0:00:11]} Nf6 {[%emt 0:00:15]} 4. e5 {[%emt 0:00:08]} Nfd7 {[%emt 0:00:04]} 5. Bd3 {[%emt 0:00:09]} c5 {[%emt 0:00:26]} 6. c3 {[%emt 0:00:09]} Nc6 {[%emt 0:00:08]} 7. Ne2 {[%emt 0:00:07]} cxd4 {[%emt 0:00:26]} 8. cxd4 {[%emt 0:00:08]} f6 {[%emt 0:00:34]} 9. exf6 {[%emt 0:00:15]} Nxf6 {[%emt 0:00:06]} 10. O-O {[%emt 0:00:18]} Bd6 {[%emt 0:00:18]} 11. Nf3 {[%emt 0:00:12]} O-O {[%emt 0:00:25]} 12. Bf4 {[%emt 0:00:43]} Bxf4 {[%emt 0:03:57]} 13. Nxf4 {[%emt 0:00:09]} Ne4 {[%emt 0:00:05]} 14. Ne2 {[%emt 0:00:21] Nowadays more popular than 14.Qc1.} Nb4 $146 {[%emt 0:07:19] C06: French Tarrasch: 3...Nf6 4 e5 Nfd7 5 Bd3 main lines.} ({Predecessor:} 14... Rxf3 15. gxf3 Ng5 16. f4 Nh3+ 17. Kh1 Qh4 18. Qe1 Nxf4 19. Nxf4 Qxf4 20. Qe3 Qxd4 21. Qh3 g6 22. Qg3 e5 23. Rad1 Qg4 24. Bb5 Nd4 25. Ba4 {½-½ Nakamura,H (2768)-Andreikin,D (2729) Titled Tuesday intern op 04th Oct Early blitz 2022 (7)}) 15. Ng3 {[%emt 0:09:27]} Nxd3 {[%emt 0:02:05]} 16. Qxd3 {[%emt 0:00:12]} Ng5 {[%emt 0:01:10]} 17. Ne5 {[%emt 0:03:00]} Bd7 {[%emt 0:01:41]} 18. Rfe1 {[%emt 0:02:53]} Be8 {[%emt 0:01:28]} (18... Nf7 $11) 19. Rac1 {[%emt 0:03:24]} Nf7 {[%emt 0:02:52]} 20. Qe3 {[%emt 0:08:27]} Nd6 {[%emt 0:01:55]} 21. Nd3 {[%emt 0:03:22]} Bf7 {[%emt 0:01:44]} 22. b3 {[%emt 0:02:22]} Qa5 {[%emt 0:02:39]} 23. Qe5 {[%emt 0:07:30]} Rad8 {[%emt 0:01:42] [#]} 24. Re2 {[%emt 0:03:20]} (24. Ne2 $1 $16) 24... Kh8 {[%emt 0:02:44]} 25. Nf4 {[%emt 0:05:19]} Qb6 {[%emt 0:02:58]} 26. Rc5 {[%emt 0:06:10]} Nb5 {[%emt 0:14:29]} ({Better is} 26... Rde8 27. h4 h6) 27. a4 {[%emt 0:07:56]} Nd6 {[%emt 0:00:53] [#]} 28. Re3 $1 {[%emt 0:01:52]} ({Resist} 28. Nxe6 $6 Bxe6 29. Qxe6 Qxb3 $14) 28... Rde8 {[%emt 0:03:21] [#]} 29. a5 {[%emt 0:06:17]} (29. Rec3 $1 $16 Bg6 30. Rc7 (30. Nxe6 $2 {too greedy.} Rf6 $19)) 29... Qd8 {[%emt 0:01:11]} 30. Rec3 {[%emt 0:03:22]} Re7 {[%emt 0:01:31]} 31. h4 {[%emt 0:04:22]} Bg8 {[%emt 0:05:43]} 32. h5 {[%emt 0:05:06]} Nf7 {[%emt 0:01:25]} 33. Qe2 {[%emt 0:01:07]} Nh6 {[%emt 0:00:46]} 34. Nd3 {[%emt 0:02:50]} Ref7 {[%emt 0:01:44]} 35. Nh1 {[%emt 0:03:39]} Qh4 {[%emt 0:01:17]} 36. Ne5 {[%emt 0:00:30]} Rf5 {[%emt 0:00:56]} 37. Nf3 {[%emt 0:01:06]} Qg4 {[%emt 0:01:50]} 38. Ng3 {[%emt 0:00:35]} Rf4 {[%emt 0:01:36]} 39. Rc8 {[%emt 0:03:47]} Rxc8 {[%emt 0:11:00]} 40. Rxc8 {[%emt 0:00:07]} e5 {[%emt 0:03:22]} 41. Rb8 {[%emt 0:04:13]} (41. Nxe5 $2 {loses.} Qxc8 42. Qd2 Rf8 $19) ({Less strong is} 41. Qxe5 Rxf3 42. Rxg8+ Nxg8 $16) 41... exd4 {[%emt 0:07:02]} 42. Rxb7 {[%emt 0:00:53]} Qc8 {[%emt 0:03:12]} 43. a6 {[%emt 0:01:50]} Qc1+ {[%emt 0:02:39]} 44. Qe1 {[%emt 0:01:25]} Qc3 {[%emt 0:00:25]} 45. Qe5 {[%emt 0:01:13]} Qa1+ {[%emt 0:01:07]} 46. Nf1 {[%emt 0:00:37]} Rf7 {[%emt 0:00:37]} 47. Rxf7 {[%emt 0:00:58]} Nxf7 {[%emt 0:00:15]} 48. Qxd5 {[%emt 0:00:46]} Qxa6 {[%emt 0:00:27]} 49. Qxd4 {[%emt 0:00:28]} Qb5 {[%emt 0:01:26]} 50. b4 {[%emt 0:00:28]} a5 {[%emt 0:00:53]} 51. bxa5 {[%emt 0:00:12]} Qxa5 {[%emt 0:00:01]} 52. g4 {[%emt 0:00:26]} Ng5 {[%emt 0:01:25]} 53. Nh4 {[%emt 0:00:59]} ({White should try} 53. Nxg5 $16 Qxg5 54. Ne3) 53... Qe1 {[%emt 0:01:34]} 54. h6 {[%emt 0:00:30]} Qe7 {[%emt 0:02:20]} 55. Ne3 {[%emt 0:00:31]} (55. hxg7+ Qxg7 56. Qe3 Qf6 $14) 55... Qf6 {[%emt 0:00:53]} 56. hxg7+ {[%emt 0:00:23]} Qxg7 {[%emt 0:00:20]} 57. Qd8 {[%emt 0:00:34]} Ne6 {[%emt 0:01:16]} 58. Qd6 {[%emt 0:00:32]} Qd4 {[%emt 0:01:35]} ({Black should play} 58... Qa1+ $14 59. Kg2 Qd4) 59. Qg3 {[%emt 0:00:26]} Qf4 {[%emt 0:00:27]} 60. Qg2 {[%emt 0:00:32]} ({Better is} 60. Kg2 $16) 60... Qe5 {[%emt 0:01:49]} (60... Qg5 $14) 61. Nhf5 {[%emt 0:00:31]} Qa1+ {[%emt 0:00:35]} 62. Kh2 {[%emt 0:00:19]} Qe5+ {[%emt 0:00:05]} 63. Qg3 {[%emt 0:00:14]} Qxg3+ {[%emt 0:00:32]} 64. Kxg3 {[%emt 0:00:07]} Bf7 {[%emt 0:01:03]} (64... h5 $1 $14) 65. Nd6 {[%emt 0:00:37]} Bg6 {[%emt 0:01:06]} 66. f4 {[%emt 0:00:13]} Bd3 {[%emt 0:00:49]} 67. f5 {[%emt 0:00:35]} Nc5 {[%emt 0:00:32]} (67... Ng5 $16) 68. Kf4 {[%emt 0:00:27]} Nd7 {[%emt 0:00:35]} 69. Nf7+ {[%emt 0:01:11]} Kg7 {[%emt 0:00:23] [#]} 70. Ne5 $1 {[%emt 0:00:09]} Nxe5 $2 {[%emt 0:00:46]} (70... Bb5 $16) 71. Kxe5 {[%emt 0:00:07]} Kf7 {[%emt 0:00:31] [#]} 72. g5 $1 {[%emt 0:00:28]} Bb1 {[%emt 0:00:32]} 73. Ng4 {[%emt 0:00:43]} Ba2 {[%emt 0:00:21]} 74. Kd6 $18 {[%emt 0:00:21]} (74. Nf6 {mates} Kg7 75. Kd6 Bb1 76. Ke6 h6 77. g6 Kf8 78. Nd5 h5 79. Nf4 Ba2+ 80. Ke5) 74... Bb3 {[%emt 0:00:57]} 75. Ne5+ {[%emt 0:02:05]} 1-0

[Event "12th National Amateur Chess-ch 2025"]
[Site "Bihar"]
[Date "2025.03.27"]
[Round "5.16"]
[White "Theephigaa K P"]
[Black "Suravi Bhattacharya"]
[Result "1-0"]
[Annotator "NA RC"]
[ECO "C18"]
[WhiteElo "1792"]
[BlackElo "1718"]
[PlyCount "79"]
[EventDate "2025.03.25"]
[EventCountry "IND"]
[SourceTitle "playchess.com"]
[Source "ChessBase"]
[SourceQuality "1"]
[TimeControl "5400+30"]

1. e4 {[%emt 0:03:55]} e6 {[%emt 0:00:07]} 2. d4 {[%emt 0:00:17]} d5 {[%emt 0:00:02]} 3. Nc3 {[%emt 0:00:20]} Bb4 {[%emt 0:00:09]} 4. e5 {[%emt 0:00:21]} c5 {[%emt 0:00:04]} 5. a3 {[%emt 0:00:19]} Bxc3+ {[%emt 0:00:02]} 6. bxc3 {[%emt 0:00:29]} Ne7 {[%emt 0:01:03]} 7. Qg4 {[%emt 0:00:35]} cxd4 {[%emt 0:00:24]} 8. Bd3 {[%emt 0:11:31]} Qc7 {[%emt 0:02:44]} 9. Ne2 {[%emt 0:01:39]} dxc3 {[%emt 0:07:54]} 10. Qxg7 {[%emt 0:05:27]} Rg8 {[%emt 0:00:22]} 11. Qxh7 {[%emt 0:02:04]} Qxe5 {[%emt 0:01:45]} 12. Bf4 {[%emt 0:01:51]} Qf6 {[%emt 0:01:09]} 13. Qh6 {[%emt 0:09:46]} Nd7 {[%emt 0:14:47]} 14. Qxf6 {[%emt 0:04:13]} Nxf6 {[%emt 0:00:02]} 15. Nxc3 {[%emt 0:06:17]} Bd7 {[%emt 0:05:41]} 16. O-O-O {[%emt 0:05:52]} a6 {[%emt 0:08:49]} 17. Be5 {[%emt 0:06:29]} Ng4 {[%emt 0:02:48]} 18. Bg3 {[%emt 0:01:23]} Rc8 {[%emt 0:03:21]} 19. Kb2 {[%emt 0:02:09]} Bc6 {[%emt 0:03:34]} 20. Rde1 {[%emt 0:09:17]} Kd7 {[%emt 0:05:49]} 21. h4 {[%emt 0:05:06]} Ne3 {[%emt 0:08:04]} 22. Rxe3 {[%emt 0:06:31]} d4 {[%emt 0:00:09]} 23. Ne4 {[%emt 0:01:43]} dxe3 {[%emt 0:01:31]} 24. Nf6+ {[%emt 0:00:22]} Kd8 {[%emt 0:00:06]} 25. Nxg8 {[%emt 0:00:53]} Nxg8 {[%emt 0:00:03]} 26. h5 {[%emt 0:06:07]} f5 {[%emt 0:14:36]} 27. h6 {[%emt 0:02:03]} Nf6 {[%emt 0:00:07]} 28. h7 {[%emt 0:01:35]} Nxh7 {[%emt 0:00:06]} 29. Rxh7 {[%emt 0:00:27]} exf2 {[%emt 0:00:10]} 30. Bxf2 {[%emt 0:01:20]} Bxg2 {[%emt 0:00:18]} 31. Rg7 {[%emt 0:03:52]} Bd5 {[%emt 0:01:00]} 32. c4 {[%emt 0:01:04]} Bxc4 {[%emt 0:01:11]} 33. Rg8+ {[%emt 0:00:26]} Kd7 {[%emt 0:00:01]} 34. Rxc8 {[%emt 0:00:40]} Kxc8 {[%emt 0:00:01]} 35. Bxc4 {[%emt 0:00:13]} Kd7 {[%emt 0:00:01]} 36. Bg3 {[%emt 0:00:23]} b5 {[%emt 0:00:09]} 37. Bb3 {[%emt 0:00:49]} Ke7 {[%emt 0:00:08]} 38. Kc3 {[%emt 0:00:36]} a5 {[%emt 0:00:56]} 39. Kd4 {[%emt 0:00:10]} Kf6 {[%emt 0:00:43]} 40. Bh4+ {[%emt 0:00:23]} 1-0

[Event "12th National Amateur Chess-ch 2025"]
[Site "Bihar"]
[Date "2025.03.27"]
[Round "5.17"]
[White "Kashvy Sabharwal"]
[Black "Vaishnavi Radhakrishnan"]
[Result "1/2-1/2"]
[Annotator "NA RC"]
[ECO "D02"]
[WhiteElo "1640"]
[BlackElo "1658"]
[PlyCount "125"]
[EventDate "2025.03.25"]
[EventCountry "IND"]
[SourceTitle "playchess.com"]
[Source "ChessBase"]
[SourceQuality "1"]
[TimeControl "5400+30"]

1. d4 {[%emt 0:03:16]} d5 {[%emt 0:00:40]} 2. Nf3 {[%emt 0:00:04]} Nf6 {[%emt 0:00:37]} 3. Bf4 {[%emt 0:00:04]} g6 {[%emt 0:02:12]} 4. e3 {[%emt 0:00:32]} Bg7 {[%emt 0:00:28]} 5. Bd3 {[%emt 0:01:07]} O-O {[%emt 0:01:08]} 6. h4 {[%emt 0:01:37]} Bg4 {[%emt 0:03:45]} 7. Nbd2 {[%emt 0:03:29]} a6 {[%emt 0:01:31]} 8. Be2 {[%emt 0:03:46]} Nc6 {[%emt 0:03:52]} 9. Ne5 {[%emt 0:02:55]} Bxe2 {[%emt 0:02:50]} 10. Nxc6 {[%emt 0:14:20]} Bxd1 {[%emt 0:07:32]} 11. Nxd8 {[%emt 0:00:06]} Rfxd8 {[%emt 0:03:28]} 12. Rxd1 {[%emt 0:00:18]} Rdc8 {[%emt 0:02:00]} 13. Be5 {[%emt 0:08:25]} Nd7 {[%emt 0:04:51]} 14. Bxg7 {[%emt 0:01:02]} Kxg7 {[%emt 0:00:14]} 15. c4 {[%emt 0:08:20]} dxc4 {[%emt 0:01:44]} 16. Nxc4 {[%emt 0:00:09]} b5 {[%emt 0:00:15]} 17. Nd2 {[%emt 0:05:26]} c5 {[%emt 0:03:08]} 18. dxc5 {[%emt 0:01:24]} Nxc5 {[%emt 0:00:19]} 19. Nf3 {[%emt 0:02:26]} Na4 {[%emt 0:02:09]} 20. O-O {[%emt 0:08:08]} Nxb2 {[%emt 0:04:40]} 21. Rd7 {[%emt 0:02:06]} Re8 {[%emt 0:00:29]} 22. Rc1 {[%emt 0:02:03]} Nc4 {[%emt 0:02:04]} 23. Rcd1 {[%emt 0:02:04]} Rac8 {[%emt 0:01:37]} 24. Ra7 {[%emt 0:01:26]} a5 {[%emt 0:01:21]} 25. Rdd7 {[%emt 0:04:24]} Kf8 {[%emt 0:03:34]} 26. Nd4 {[%emt 0:01:59]} b4 {[%emt 0:01:30]} 27. Rdb7 {[%emt 0:03:30]} Rc5 {[%emt 0:04:07]} 28. Nb3 {[%emt 0:01:08]} Rd5 {[%emt 0:00:30]} 29. Rc7 {[%emt 0:00:59]} Rd1+ {[%emt 0:00:26]} 30. Kh2 {[%emt 0:01:56]} Nd2 {[%emt 0:02:33]} 31. Rxa5 {[%emt 0:14:41]} Nxb3 {[%emt 0:01:39]} 32. axb3 {[%emt 0:00:04]} Rd3 {[%emt 0:01:25]} 33. Rb5 {[%emt 0:00:25]} Rxb3 {[%emt 0:00:20]} 34. Rcb7 {[%emt 0:00:14]} Rd8 {[%emt 0:01:13]} 35. Rxb4 {[%emt 0:00:17]} Rxb4 {[%emt 0:00:10]} 36. Rxb4 {[%emt 0:00:05]} f5 {[%emt 0:00:07]} 37. Rb7 {[%emt 0:00:50]} Rd2 {[%emt 0:00:41]} 38. Kg3 {[%emt 0:00:38]} Kf7 {[%emt 0:00:16]} 39. Rc7 {[%emt 0:01:29]} h6 {[%emt 0:01:58]} 40. f4 {[%emt 0:00:57]} Ra2 {[%emt 0:00:25]} 41. Rb7 {[%emt 0:00:39]} Ra4 {[%emt 0:00:46]} 42. Kf3 {[%emt 0:01:58]} h5 {[%emt 0:01:46]} 43. Kg3 {[%emt 0:00:30]} Re4 {[%emt 0:00:22]} 44. Kf3 {[%emt 0:00:15]} Kf6 {[%emt 0:00:15]} 45. Rb6+ {[%emt 0:00:18]} Re6 {[%emt 0:00:41]} 46. Rb8 {[%emt 0:00:36]} Re4 {[%emt 0:02:04]} 47. Rb6+ {[%emt 0:00:34]} Kg7 {[%emt 0:00:07]} 48. Rb7 {[%emt 0:00:12]} Kh6 {[%emt 0:00:19]} 49. Rc7 {[%emt 0:00:23]} Kg7 {[%emt 0:01:05]} 50. Rb7 {[%emt 0:00:07]} Kf7 {[%emt 0:00:22]} 51. Rc7 {[%emt 0:00:16]} Rb4 {[%emt 0:00:06]} 52. Ra7 {[%emt 0:00:27]} Rb1 {[%emt 0:00:11]} 53. Rc7 {[%emt 0:00:41]} Rf1+ {[%emt 0:00:18]} 54. Kg3 {[%emt 0:01:13]} Kf6 {[%emt 0:00:17]} 55. Rc6+ {[%emt 0:00:22]} e6 {[%emt 0:00:08]} 56. Ra6 {[%emt 0:00:10]} Re1 {[%emt 0:00:17]} 57. Kf3 {[%emt 0:00:16]} Rh1 {[%emt 0:01:04]} 58. Kg3 {[%emt 0:00:38]} Re1 {[%emt 0:00:50]} 59. Kf3 {[%emt 0:00:10]} Rh1 {[%emt 0:00:10]} 60. Kg3 {[%emt 0:00:04]} Re1 {[%emt 0:00:16]} 61. Kf3 {[%emt 0:00:16]} Rh1 {[%emt 0:00:57]} 62. Kg3 {[%emt 0:00:05]} Re1 {[%emt 0:00:45]} 63. Kf3 {[%emt 0:00:04]} 1/2-1/2

[Event "12th National Amateur Chess-ch 2025"]
[Site "Bihar"]
[Date "2025.03.27"]
[Round "5.18"]
[White "Vidhi Angelina"]
[Black "Silarapu Devi Dedipyasri"]
[Result "1/2-1/2"]
[Annotator "NA RC"]
[ECO "D35"]
[WhiteElo "1620"]
[BlackElo "1587"]
[PlyCount "63"]
[EventDate "2025.03.25"]
[EventCountry "IND"]
[SourceTitle "playchess.com"]
[Source "ChessBase"]
[SourceQuality "1"]
[TimeControl "5400+30"]

1. d4 {[%emt 0:09:29]} d5 {[%emt 0:00:25]} 2. c4 {[%emt 0:00:31]} e6 {[%emt 0:00:12]} 3. Nc3 {[%emt 0:00:10]} Nf6 {[%emt 0:00:08]} 4. Bg5 {[%emt 0:00:07]} Nbd7 {[%emt 0:00:39]} 5. e3 {[%emt 0:00:49]} c6 {[%emt 0:00:13]} 6. cxd5 {[%emt 0:01:48]} exd5 {[%emt 0:00:15]} 7. Bd3 {[%emt 0:00:17]} Be7 {[%emt 0:00:20]} 8. Nf3 {[%emt 0:00:33]} O-O {[%emt 0:01:37]} 9. O-O {[%emt 0:04:38]} h6 {[%emt 0:00:19]} 10. Bh4 {[%emt 0:00:10]} Ne4 {[%emt 0:00:45]} 11. Bxe7 {[%emt 0:07:36]} Qxe7 {[%emt 0:00:16]} 12. Nd2 {[%emt 0:00:49]} f5 {[%emt 0:01:37]} 13. Qe2 {[%emt 0:01:42]} Ndf6 {[%emt 0:02:31]} 14. f3 {[%emt 0:01:54]} Nxd2 {[%emt 0:04:16]} 15. Qxd2 {[%emt 0:00:11]} Bd7 {[%emt 0:03:39]} 16. Rae1 {[%emt 0:03:26]} Rae8 {[%emt 0:03:29]} 17. Qc2 {[%emt 0:07:03]} g6 {[%emt 0:24:28]} 18. e4 {[%emt 0:05:16]} fxe4 {[%emt 0:01:15]} 19. fxe4 {[%emt 0:01:55]} dxe4 {[%emt 0:02:59]} 20. Nxe4 {[%emt 0:03:15]} Nxe4 {[%emt 0:01:45]} 21. Rxf8+ {[%emt 0:01:04]} Qxf8 {[%emt 0:02:54]} 22. Rxe4 {[%emt 0:06:18]} Bf5 {[%emt 0:11:33]} 23. Qb3+ {[%emt 0:09:32]} Kh8 {[%emt 0:00:57]} 24. Rf4 {[%emt 0:02:36]} Re3 {[%emt 0:10:05]} 25. Rf3 {[%emt 0:07:44]} Rxf3 {[%emt 0:01:50]} 26. gxf3 {[%emt 0:00:29]} Bxd3 {[%emt 0:06:27]} 27. Qxd3 {[%emt 0:00:06]} Qf4 {[%emt 0:05:46]} 28. Kg2 {[%emt 0:11:05]} Qg5+ {[%emt 0:02:00]} 29. Kf2 {[%emt 0:00:14]} Qh4+ {[%emt 0:00:19]} 30. Kg2 {[%emt 0:00:08]} Qg5+ {[%emt 0:00:20]} 31. Kf2 {[%emt 0:01:18]} Qh4+ {[%emt 0:00:09]} 32. Ke3 {[%emt 0:00:06]} 1/2-1/2

[Event "12th National Amateur Chess-ch 2025"]
[Site "Bihar"]
[Date "2025.03.27"]
[Round "5.19"]
[White "Aayusree Sarkar"]
[Black "Hiya Garg"]
[Result "1-0"]
[Annotator "NA RC"]
[ECO "C01"]
[WhiteElo "1677"]
[BlackElo "1518"]
[PlyCount "83"]
[EventDate "2025.03.25"]
[EventCountry "IND"]
[SourceTitle "playchess.com"]
[Source "ChessBase"]
[SourceQuality "1"]
[TimeControl "5400+30"]

1. e4 {[%emt 0:00:30]} e6 {[%emt 0:00:30]} 2. d4 {[%emt 0:00:30]} d5 {[%emt 0:00:30]} 3. exd5 {[%emt 0:00:30]} exd5 {[%emt 0:00:30]} 4. Nc3 {[%emt 0:00:30]} c6 {[%emt 0:00:30]} 5. Bf4 {[%emt 0:00:30]} Bd6 {[%emt 0:00:30]} 6. Qd2 {[%emt 0:00:30]} Bf5 {[%emt 0:00:30]} 7. O-O-O {[%emt 0:00:30]} Ne7 {[%emt 0:00:30]} 8. f3 {[%emt 0:00:30]} h5 {[%emt 0:00:30]} 9. Re1 {[%emt 0:00:30]} Qc7 {[%emt 0:00:30]} 10. Bxd6 {[%emt 0:00:30]} Qxd6 {[%emt 0:00:30]} 11. Qg5 {[%emt 0:00:30]} Kf8 {[%emt 0:00:30]} 12. g4 {[%emt 0:00:30]} hxg4 {[%emt 0:00:30]} 13. fxg4 {[%emt 0:00:30]} Be6 {[%emt 0:00:30]} 14. h4 {[%emt 0:00:30]} Qg3 {[%emt 0:00:30]} 15. Qd2 {[%emt 0:00:30]} Rxh4 {[%emt 0:00:30]} 16. Nge2 {[%emt 0:00:30]} Qxg4 {[%emt 0:00:30]} 17. Rg1 {[%emt 0:00:30]} Qf5 {[%emt 0:00:30]} 18. Bg2 {[%emt 0:00:30]} Qf6 {[%emt 0:00:30]} 19. Kb1 {[%emt 0:00:30]} Nf5 {[%emt 0:00:30]} 20. Ref1 {[%emt 0:00:30]} Qh6 {[%emt 0:00:30]} 21. Qd3 {[%emt 0:00:30]} Qe3 {[%emt 0:00:30]} 22. Qd1 {[%emt 0:00:30]} Nxd4 {[%emt 0:00:30]} 23. Nxd4 {[%emt 0:00:30]} Qxd4 {[%emt 0:00:30]} 24. Qe1 {[%emt 0:00:30]} Rf4 {[%emt 0:00:30]} 25. Bf3 {[%emt 0:00:30]} Nd7 {[%emt 0:00:30]} 26. Ne2 {[%emt 0:00:30]} Qc4 {[%emt 0:00:30]} 27. Nxf4 {[%emt 0:00:30]} Bf5 {[%emt 0:00:30]} 28. Qd2 {[%emt 0:00:30]} Ne5 {[%emt 0:00:30]} 29. Be2 {[%emt 0:00:30]} Qe4 {[%emt 0:00:30]} 30. Bd3 {[%emt 0:00:30]} Qd4 {[%emt 0:00:30]} 31. Qg2 {[%emt 0:00:30]} Nxd3 {[%emt 0:00:30]} 32. Nxd3 {[%emt 0:00:30]} Bxd3 {[%emt 0:00:30]} 33. cxd3 {[%emt 0:00:30]} Qxd3+ {[%emt 0:00:30]} 34. Ka1 {[%emt 0:00:30]} g6 {[%emt 0:00:30]} 35. Qf2 {[%emt 0:00:30]} Qf5 {[%emt 0:00:30]} 36. Qc5+ {[%emt 0:00:30]} Ke8 {[%emt 0:00:30]} 37. Rxf5 {[%emt 0:00:30]} gxf5 {[%emt 0:00:30]} 38. Rg8+ {[%emt 0:00:30]} Kd7 {[%emt 0:00:30]} 39. Rxa8 {[%emt 0:00:30]} a6 {[%emt 0:00:30]} 40. Qf8 {[%emt 0:00:30]} Ke6 {[%emt 0:00:30]} 41. Re8+ {[%emt 0:00:30]} Kf6 {[%emt 0:00:30]} 42. Qh6# {[%emt 0:00:30]} 1-0

[Event "12th National Amateur Chess-ch 2025"]
[Site "Bihar"]
[Date "2025.03.27"]
[Round "5.20"]
[White "Disha U A"]
[Black "Hunsika M"]
[Result "1-0"]
[Annotator "NA RC"]
[ECO "D00"]
[WhiteElo "1643"]
[BlackElo "1520"]
[PlyCount "105"]
[EventDate "2025.03.25"]
[EventCountry "IND"]
[SourceTitle "playchess.com"]
[Source "ChessBase"]
[SourceQuality "1"]
[TimeControl "5400+30"]

1. d4 {[%emt 0:00:30]} d5 {[%emt 0:00:30]} 2. Nc3 {[%emt 0:00:30]} e6 {[%emt 0:00:30]} 3. Bf4 {[%emt 0:00:30]} Nf6 {[%emt 0:00:30]} 4. Nb5 {[%emt 0:00:30]} Bb4+ {[%emt 0:00:30]} 5. c3 {[%emt 0:00:30]} Ba5 {[%emt 0:00:30]} 6. a4 {[%emt 0:00:30]} a6 {[%emt 0:00:30]} 7. Na3 {[%emt 0:00:30]} c6 {[%emt 0:00:30]} 8. e3 {[%emt 0:00:30]} O-O {[%emt 0:00:30]} 9. Nf3 {[%emt 0:00:30]} Bc7 {[%emt 0:00:30]} 10. Qc2 {[%emt 0:00:30]} h6 {[%emt 0:00:30]} 11. Bd3 {[%emt 0:00:30]} Nbd7 {[%emt 0:00:30]} 12. Nb1 {[%emt 0:00:30]} c5 {[%emt 0:00:30]} 13. b3 {[%emt 0:00:30]} Bxf4 {[%emt 0:00:30]} 14. exf4 {[%emt 0:00:30]} Qc7 {[%emt 0:00:30]} 15. Ne5 {[%emt 0:00:30]} cxd4 {[%emt 0:00:30]} 16. cxd4 {[%emt 0:00:30]} Qxc2 {[%emt 0:00:30]} 17. Bxc2 {[%emt 0:00:30]} b6 {[%emt 0:00:30]} 18. Nc3 {[%emt 0:00:30]} Bb7 {[%emt 0:00:30]} 19. f3 {[%emt 0:00:30]} Rac8 {[%emt 0:00:30]} 20. Kd2 {[%emt 0:00:30]} Rc7 {[%emt 0:00:30]} 21. Rhc1 {[%emt 0:00:30]} Rfc8 {[%emt 0:00:30]} 22. Bd3 {[%emt 0:00:30]} Nb8 {[%emt 0:00:30]} 23. f5 {[%emt 0:00:30]} Nc6 {[%emt 0:00:30]} 24. Nxc6 {[%emt 0:00:30]} Rxc6 {[%emt 0:00:30]} 25. fxe6 {[%emt 0:00:30]} fxe6 {[%emt 0:00:30]} 26. Rc2 {[%emt 0:00:30]} Nh5 {[%emt 0:00:30]} 27. g3 {[%emt 0:00:30]} Rf8 {[%emt 0:00:30]} 28. Bg6 {[%emt 0:00:30]} Nf6 {[%emt 0:00:30]} 29. Re1 {[%emt 0:00:30]} Nd7 {[%emt 0:00:30]} 30. Bh5 {[%emt 0:00:30]} Nf6 {[%emt 0:00:30]} 31. Bg6 {[%emt 0:00:30]} Nd7 {[%emt 0:00:30]} 32. Nd1 {[%emt 0:00:30]} Rxc2+ {[%emt 0:00:30]} 33. Bxc2 {[%emt 0:00:30]} Rxf3 {[%emt 0:00:30]} 34. Rxe6 {[%emt 0:00:30]} Kf7 {[%emt 0:00:30]} 35. Re3 {[%emt 0:00:30]} Rf1 {[%emt 0:00:30]} 36. Ke2 {[%emt 0:00:30]} Rf6 {[%emt 0:00:30]} 37. Nf2 {[%emt 0:00:30]} Nf8 {[%emt 0:00:30]} 38. Ng4 {[%emt 0:00:30]} Re6 {[%emt 0:00:30]} 39. Ne5+ {[%emt 0:00:30]} Ke7 {[%emt 0:00:30]} 40. Bf5 {[%emt 0:00:30]} Kf6 {[%emt 0:00:30]} 41. Bxe6 {[%emt 0:00:30]} Nxe6 {[%emt 0:00:30]} 42. Rf3+ {[%emt 0:00:30]} Kg5 {[%emt 0:00:30]} 43. Kd3 {[%emt 0:00:30]} Nd8 {[%emt 0:00:30]} 44. Nf7+ {[%emt 0:00:30]} Nxf7 {[%emt 0:00:30]} 45. Rxf7 {[%emt 0:00:30]} Bc8 {[%emt 0:00:30]} 46. Rxg7+ {[%emt 0:00:30]} Kf6 {[%emt 0:00:30]} 47. Rc7 {[%emt 0:00:30]} Bf5+ {[%emt 0:00:30]} 48. Ke3 {[%emt 0:00:30]} Kg5 {[%emt 0:00:30]} 49. Rc6 {[%emt 0:00:30]} b5 {[%emt 0:00:30]} 50. axb5 {[%emt 0:00:30]} axb5 {[%emt 0:00:30]} 51. Rc5 {[%emt 0:00:30]} Kf6 {[%emt 0:00:30]} 52. Rxd5 {[%emt 0:00:30]} Be6 {[%emt 0:00:30]} 53. Rxb5 {[%emt 0:00:30]} 1-0